bitfinex-derivatives/quotes_BTCF0:USTF0_20230402
["timestamp","ask_amount","ask_price","bid_price","bid_amount"]
[1680463937571,0.0718,28133.0,28132.0,0.028]
[1680463937771,0.0718,28133.0,28132.0,0.078]
[1680463938166,0.0718,28133.0,28132.0,0.05]
[1680463938773,0.0718,28133.0,28131.0,0.0984]
[1680463939282,0.0718,28133.0,28132.0,0.028]
[1680463939580,0.0708,28133.0,28132.0,0.05]
[1680463939780,0.0718,28133.0,28132.0,0.05]
[1680463939971,0.0718,28133.0,28131.0,0.0984]
[1680463940183,0.0708,28133.0,28131.0,0.0704]
[1680463940479,0.0718,28133.0,28132.0,0.028]
[1680463941880,0.0718,28133.0,28131.0,0.0984]
[1680463942083,0.0718,28133.0,28131.0,0.028]
[1680463942084,0.0711,28132.0,28131.0,0.028]
[1680463942583,0.07409018,28132.0,28130.0,0.05]
[1680463942783,0.0711,28131.0,28130.0,0.05]
[1680463943593,0.0721,28131.0,28130.0,0.078]
[1680463944283,0.0721,28131.0,28130.0,0.028]
[1680463948986,0.1432,28131.0,28130.0,0.028]
[1680463951979,0.0721,28131.0,28130.0,0.028]
[1680463955080,0.3728,28131.0,28130.0,0.028]
[1680463957497,0.37771975,28131.0,28130.0,0.028]
[1680463961099,0.07701975,28131.0,28130.0,0.028]
[1680463961299,0.37771975,28131.0,28130.0,0.028]
[1680463969899,0.07701975,28131.0,28130.0,0.028]
[1680463970103,0.37771975,28131.0,28130.0,0.028]
[1680463973899,0.07701975,28131.0,28130.0,0.028]
[1680463974201,0.37771975,28131.0,28130.0,0.028]
[1680463975196,0.37771975,28131.0,28128.0,0.05]
[1680463975401,0.30661975,28131.0,28130.0,0.025]
[1680463975600,0.37761975,28131.0,28130.0,0.025]
[1680463977202,0.44851975,28131.0,28130.0,0.02489226]
[1680463980907,0.05,28130.0,28128.0,0.05]
[1680463981100,0.1417,28129.0,28128.0,0.05]
[1680463981301,0.14682352,28129.0,28127.0,0.05296409]
[1680463981502,0.0711,28128.0,28125.0,0.4218]
[1680463981704,0.0711,28127.0,28125.0,0.4218]
[1680463981900,0.0711,28128.0,28126.0,0.34328512]
[1680463982106,0.0711,28128.0,28127.0,0.0711]
[1680463982606,0.4429,28128.0,28126.0,0.05]
[1680463982909,0.0711,28126.0,28121.0,0.05]
[1680463983101,0.0711,28122.0,28121.0,0.05]
[1680463983699,0.0711,28122.0,28121.0,0.27222744]
[1680463984101,0.0741,28122.0,28121.0,0.052]
[1680463984609,0.0741,28122.0,28121.0,0.002]
[1680463987512,0.08600034,28122.0,28121.0,0.002]
[1680463989701,0.08600034,28122.0,28121.0,0.052]
[1680463990101,0.08600034,28122.0,28121.0,0.002]
[1680463992413,0.15710034,28122.0,28118.0,0.05]
[1680463992603,0.1422,28118.0,28112.0,0.0711]
[1680463992809,0.0711,28114.0,28112.0,0.0711]
[1680463993009,0.0711,28114.0,28113.0,0.05]
[1680463993515,0.08888346,28114.0,28113.0,0.05]
[1680463994610,0.09188346,28114.0,28113.0,0.051]
[1680463994915,0.08888346,28114.0,28113.0,0.05]
[1680463995214,0.09188346,28114.0,28113.0,0.051]
[1680463995412,0.08888346,28114.0,28113.0,0.05]
[1680463995610,0.09188346,28114.0,28113.0,0.001]
[1680463995818,0.09188346,28114.0,28113.0,0.051]
[1680463996013,0.08888346,28114.0,28113.0,0.05]
[1680463996208,0.09188346,28114.0,28113.0,0.051]
[1680463996407,0.09188346,28114.0,28113.0,0.001]
[1680463996811,0.16298346,28114.0,28113.0,0.001]
[1680463997009,0.21298346,28114.0,28113.0,0.001]
[1680463997210,0.35628346,28114.0,28113.0,0.001]
[1680463997413,0.16348346,28114.0,28113.0,0.001]
[1680463997919,0.21348346,28114.0,28113.0,0.001]
[1680463998711,0.35668346,28114.0,28113.0,0.001]
[1680463998908,0.49888346,28114.0,28109.0,0.05]
[1680463999114,0.2844,28110.0,28109.0,0.05]
[1680463999312,0.2844,28110.0,28105.0,0.3007]
[1680463999515,0.0711,28106.0,28105.0,0.3007]
[1680464000217,0.0711,28109.0,28105.0,0.3718]
[1680464000421,0.0711,28109.0,28107.0,0.0711]
[1680464000621,0.1952,28110.0,28108.0,0.05]
[1680464000919,0.1416,28109.0,28108.0,0.05]
[1680464001218,0.1416,28109.0,28106.0,0.05]
[1680464001219,0.1916,28109.0,28106.0,0.05]
[1680464001417,0.3718,28108.0,28106.0,0.1211]
[1680464001810,0.003,28109.0,28106.0,0.05]
[1680464002521,0.03218993,28108.0,28106.0,0.05]
[1680464002719,0.10328993,28108.0,28106.0,0.1204]
[1680464002913,0.10628993,28108.0,28106.0,0.1204]
[1680464003417,0.0709,28112.0,28107.0,0.3718]
[1680464003611,0.0709,28112.0,28110.0,0.0711]
[1680464003926,0.3718,28115.0,28111.0,0.1211]
[1680464004219,0.3718,28115.0,28112.0,0.1205]
[1680464004720,0.3718,28115.0,28113.0,0.05]
[1680464005116,0.3007,28115.0,28113.0,0.05]
[1680464005317,0.0711,28114.0,28113.0,0.05]
[1680464006314,0.0711,28114.0,28113.0,0.002]
[1680464006518,0.0739,28114.0,28113.0,0.002]
[1680464006724,0.1943,28114.0,28113.0,0.002]
[1680464007121,0.1943,28114.0,28110.0,0.05]
[1680464007122,0.05,28113.0,28110.0,0.05]
[1680464007317,0.0711,28111.0,28110.0,0.05]
[1680464008015,0.0711,28111.0,28109.0,0.05]
[1680464008218,0.0711,28110.0,28109.0,0.05]
[1680464008423,0.0711,28110.0,28107.0,0.4218]
[1680464008625,0.0711,28109.0,28107.0,0.4218]
[1680464009322,0.0711,28109.0,28107.0,0.3718]
[1680464009517,0.0711,28109.0,28105.0,0.10240213]
[1680464009518,0.0711,28108.0,28105.0,0.05240213]
[1680464009724,0.3037,28109.0,28104.0,0.3507]
[1680464009725,0.0711,28106.0,28104.0,0.3507]
[1680464010021,0.0711,28105.0,28104.0,0.3507]
[1680464010424,0.4428,28105.0,28100.0,0.1]
[1680464010615,0.0711,28101.0,28100.0,0.1]
[1680464011118,0.0985474,28101.0,28100.0,0.1]
[1680464011828,0.4022474,28101.0,28100.0,0.1]
[1680464012129,0.3311474,28101.0,28100.0,0.1]
[1680464012818,0.3281474,28101.0,28100.0,0.1]
[1680464013021,0.3311474,28101.0,28100.0,0.1]
[1680464013220,0.3311474,28101.0,28096.0,0.05]
[1680464013221,0.05,28100.0,28095.0,0.3007]
[1680464013523,0.0886,28096.0,28092.0,0.3007]
[1680464013824,0.0886,28096.0,28093.0,0.05]
[1680464014216,0.3007,28095.0,28093.0,0.05]
[1680464015017,0.3037,28095.0,28092.0,0.05]
[1680464015623,0.0886,28093.0,28092.0,0.05]
[1680464016432,0.089,28094.0,28092.0,0.05]
[1680464016927,0.003,28095.0,28093.0,0.089]
[1680464017124,0.003,28095.0,28094.0,0.05]
[1680464017629,0.0889,28097.0,28094.0,0.05]
[1680464017831,0.3109,28102.0,28096.0,0.3897]
[1680464018024,0.3898,28103.0,28098.0,0.089]
[1680464018228,0.3898,28103.0,28099.0,0.05]
[1680464018825,0.0891,28103.0,28099.0,0.3507]
[1680464019026,0.3889,28105.0,28101.0,0.0889]
[1680464019228,0.003,28103.0,28102.0,0.05]
[1680464019433,0.003,28103.0,28102.0,0.3507]
[1680464020024,0.089,28109.0,28102.0,0.4397]
[1680464020220,0.3007,28111.0,28108.0,0.0886]
[1680464020623,0.0888,28110.0,28109.0,0.05]
[1680464020830,0.3893,28110.0,28109.0,0.05]
[1680464021033,0.4393,28110.0,28103.0,0.05]
[1680464021228,0.0888,28107.0,28103.0,0.05]
[1680464021532,0.05,28106.0,28103.0,0.05]
[1680464021925,0.05,28106.0,28104.0,0.3007]
[1680464022122,0.0888,28107.0,28105.0,0.05]
[1680464023231,0.001,28106.0,28105.0,0.139]
[1680464023629,0.001,28107.0,28105.0,0.166]
[1680464023927,0.3007,28106.0,28105.0,0.027]
[1680464024123,0.4396,28106.0,28105.0,0.027]
[1680464024329,0.4406,28106.0,28105.0,0.027]
[1680464026228,0.4406,28106.0,28105.0,0.02]
[1680464026435,0.4396,28106.0,28101.0,0.05]
[1680464026732,0.3517,28106.0,28105.0,0.02]
[1680464026933,0.3905,28106.0,28105.0,0.02]
[1680464027335,0.4405,28106.0,28105.0,0.02]
[1680464027631,0.4405,28106.0,28098.0,0.3627]
[1680464027632,0.45,28105.0,28098.0,0.05]
[1680464027856,0.779,28099.0,28091.0,0.323]
[1680464028028,0.779,28099.0,28089.0,0.7806]
[1680464028029,0.3007,28092.0,28089.0,0.7806]
[1680464028227,0.089,28090.0,28085.0,0.19839]
[1680464028426,0.3897,28092.0,28088.0,0.0889]
[1680464028826,0.3007,28089.0,28088.0,0.0889]
[1680464029231,0.3007,28089.0,28087.0,0.05]
[1680464029232,0.0886,28089.0,28087.0,0.05]
[1680464029427,0.3037,28092.0,28088.0,0.005]
[1680464029627,0.05,28091.0,28088.0,0.005]
[1680464029829,0.05,28091.0,28088.0,0.089]
[1680464030032,0.003,28089.0,28088.0,0.094]
[1680464030437,0.053,28091.0,28088.0,0.094]
[1680464030637,0.003,28091.0,28089.0,0.05]
[1680464031146,0.003,28091.0,28090.0,0.3893]
[1680464031536,0.0889,28096.0,28090.0,0.3893]
[1680464031743,0.0889,28096.0,28091.0,0.0883]
[1680464032045,0.03054275,28095.0,28092.0,0.089]
[1680464032347,0.3007,28099.0,28094.0,0.0883]
[1680464032539,0.003,28096.0,28095.0,0.089]
[1680464032740,0.3037,28096.0,28095.0,0.05]
[1680464032942,0.4817,28096.0,28093.0,0.05]
[1680464033246,0.4783,28094.0,28092.0,0.007]
[1680464033444,0.4783,28094.0,28091.0,0.05]
[1680464033445,0.089,28093.0,28090.0,0.05]
[1680464033641,0.0886,28091.0,28090.0,0.05]
[1680464034643,0.0886,28091.0,28089.0,0.05]
[1680464034852,0.3007,28091.0,28086.0,0.3507]
[1680464035045,0.1386,28090.0,28086.0,0.3507]
[1680464035238,0.05,28089.0,28086.0,0.3507]
[1680464035443,0.0889,28087.0,28086.0,0.3507]
[1680464035645,0.0882,28088.0,28085.0,0.10939]
[1680464036149,0.0882,28088.0,28087.0,0.006]
[1680464036448,0.0912,28088.0,28085.0,0.11539]
[1680464037551,0.0912,28088.0,28087.0,0.006]
[1680464037739,0.003,28088.0,28087.0,0.006]
[1680464037941,0.091,28088.0,28085.0,0.11539]
[1680464038444,0.002,28088.0,28087.0,0.0944]
[1680464038650,0.091,28088.0,28087.0,0.006]
[1680464039152,0.091,28088.0,28085.0,0.11539]
[1680464039344,0.002,28088.0,28087.0,0.3007]
[1680464039946,0.002,28088.0,28086.0,0.05]
[1680464040250,0.003,28088.0,28087.0,0.006]
[1680464040649,0.003,28088.0,28087.0,0.3957]
[1680464042753,0.003,28088.0,28085.0,0.10939]
[1680464042754,0.0916,28088.0,28085.0,0.10939]
[1680464042945,0.089,28086.0,28080.0,0.3007]
[1680464043144,0.3037,28088.0,28080.0,0.3007]
[1680464043145,0.08191713,28087.0,28081.0,0.05]
[1680464043351,0.0882,28082.0,28081.0,0.05]
[1680464043848,0.0883,28086.0,28081.0,0.139]
[1680464044248,0.003,28082.0,28081.0,0.14]
[1680464044647,0.002,28086.0,28081.0,0.4407]
[1680464044955,0.002,28086.0,28084.0,0.3897]
[1680464045257,0.002,28086.0,28085.0,0.05]
[1680464045854,0.03191713,28087.0,28085.0,0.05]
[1680464046355,0.003,28086.0,28085.0,0.051]
[1680464046745,0.03491713,28087.0,28085.0,0.051]
[1680464047352,0.003,28086.0,28085.0,0.051]
[1680464047553,0.03748825,28086.0,28085.0,0.051]
[1680464047758,0.03448825,28086.0,28085.0,0.051]
[1680464048464,0.12348825,28086.0,28085.0,0.051]
[1680464049059,0.03748825,28086.0,28085.0,0.051]
[1680464049258,0.03748825,28086.0,28085.0,0.4401]
[1680464049447,0.12648825,28086.0,28082.0,0.3007]
[1680464049755,0.05,28085.0,28083.0,0.05]
[1680464050155,0.12648825,28086.0,28083.0,0.05]
[1680464050354,0.12648825,28086.0,28079.0,0.05]
[1680464050355,0.478,28084.0,28079.0,0.05]
[1680464050557,0.089,28080.0,28077.0,0.05393425]
[1680464050751,0.089,28080.0,28078.0,0.05]
[1680464050957,0.0889,28082.0,28078.0,0.05]
[1680464051160,0.05,28083.0,28079.0,0.089]
[1680464051451,0.3507,28081.0,28080.0,0.05]
[1680464051651,0.3892,28081.0,28080.0,0.05]
[1680464052054,0.3892,28081.0,28078.0,0.05]
[1680464052251,0.0882,28079.0,28077.0,0.05]
[1680464052451,0.089,28078.0,28075.0,0.05]
[1680464052653,0.0887,28076.0,28073.0,0.05406913]
[1680464052858,0.0887,28076.0,28066.0,0.3007]
[1680464052859,0.3896,28074.0,28067.0,0.05]
[1680464053054,0.0885,28072.0,28067.0,0.05]
[1680464053259,0.0885,28072.0,28067.0,0.1384]
[1680464054353,0.0885,28072.0,28069.0,0.3007]
[1680464054553,0.0887,28075.0,28070.0,0.0886]
[1680464054754,0.003,28074.0,28071.0,0.05]
[1680464054956,0.6289,28085.0,28074.0,0.4437]
[1680464055156,0.6289,28085.0,28082.0,0.3897]
[1680464055354,0.0882,28087.0,28082.0,0.3897]
[1680464055552,0.0882,28087.0,28083.0,0.05]
[1680464055753,0.7896,28084.0,28074.0,0.05]
[1680464056053,0.0887,28075.0,28071.0,0.052]
[1680464056253,0.0885,28074.0,28071.0,0.05]
[1680464056854,0.3896,28076.0,28071.0,0.139]
[1680464057050,0.3896,28076.0,28072.0,0.3007]
[1680464057259,0.3007,28076.0,28072.0,0.3007]
[1680464057459,0.3007,28076.0,28073.0,0.05]
[1680464057857,0.003,28074.0,28073.0,0.05]
[1680464058264,0.003,28074.0,28073.0,0.1919]
[1680464058761,0.1419,28074.0,28073.0,0.002]
[1680464058956,0.1419,28074.0,28071.0,0.05263351]
[1680464059160,0.003,28074.0,28073.0,0.002]
[1680464059366,0.1454,28074.0,28073.0,0.002]
[1680464061358,0.1454,28074.0,28066.0,0.05]
[1680464061566,0.1425,28067.0,28065.0,0.05]
[1680464062071,0.1414,28068.0,28065.0,0.05]
[1680464062564,0.04477481,28067.0,28065.0,0.051]
[1680464063566,0.18427481,28067.0,28065.0,0.051]
[1680464063962,0.18427481,28067.0,28065.0,0.05]
[1680464064157,0.18727481,28067.0,28065.0,0.051]
[1680464065166,0.04477481,28067.0,28065.0,0.051]
[1680464067067,0.04477481,28067.0,28066.0,0.3007]
[1680464067272,0.04477481,28067.0,28066.0,0.3507]
[1680464067474,0.003,28067.0,28066.0,0.3507]
[1680464068172,0.003,28067.0,28066.0,0.4942]
[1680464068967,0.1425,28074.0,28067.0,0.05]
[1680464069163,0.6014,28077.0,28073.0,0.3007]
[1680464069368,0.3007,28077.0,28073.0,0.3007]
[1680464069573,0.3007,28077.0,28074.0,0.05]
[1680464069773,0.3007,28077.0,28074.0,0.1925]
[1680464070370,0.4432,28077.0,28074.0,0.05]
[1680464070566,0.1425,28079.0,28076.0,0.3007]
[1680464070771,0.05,28078.0,28077.0,0.05]
[1680464070976,0.05,28080.0,28077.0,0.05]
[1680464071171,0.3507,28081.0,28077.0,0.05]
[1680464071377,0.3007,28081.0,28077.0,0.05]
[1680464071982,0.1425,28085.0,28080.0,0.1425]
[1680464072185,0.05,28084.0,28081.0,0.05]
[1680464072378,0.05,28084.0,28082.0,0.05]
[1680464072578,0.1925,28085.0,28082.0,0.3507]
[1680464072876,0.1695,28085.0,28082.0,0.3507]
[1680464073079,0.1694,28085.0,28082.0,0.3507]
[1680464073272,0.027,28084.0,28082.0,0.3517]
[1680464073485,0.027,28084.0,28083.0,0.4426]
[1680464073686,0.027,28084.0,28083.0,0.4926]
[1680464073879,0.03961971,28084.0,28083.0,0.4926]
[1680464074077,0.01261971,28084.0,28083.0,0.4926]
[1680464075377,0.016,28084.0,28083.0,0.4936]
[1680464075580,0.4427,28095.0,28084.0,0.05]
[1680464075778,0.05,28091.0,28089.0,0.3007]
[1680464075979,0.05436466,28091.0,28090.0,0.05]
[1680464076481,0.05436466,28091.0,28089.0,0.3007]
[1680464076682,0.06436466,28091.0,28089.0,0.3027]
[1680464077283,0.05436466,28091.0,28090.0,0.005]
[1680464077574,0.05436466,28091.0,28090.0,0.055]
[1680464077779,0.05436466,28091.0,28090.0,0.005]
[1680464078485,0.00436466,28091.0,28090.0,0.005]
[1680464078675,0.05,28093.0,28089.0,0.055]
[1680464079081,0.00482895,28092.0,28090.0,0.005]
[1680464079578,0.00482895,28092.0,28089.0,0.3517]
[1680464079981,0.00482895,28092.0,28089.0,0.3507]
[1680464080185,0.00582895,28092.0,28090.0,0.018]
[1680464081180,0.00582895,28092.0,28089.0,0.3687]
[1680464081677,0.00582895,28092.0,28090.0,0.018]
[1680464082078,0.00582895,28092.0,28091.0,0.1414]
[1680464083086,0.00582895,28092.0,28091.0,0.1424]
[1680464083492,0.001,28092.0,28091.0,0.1424]
[1680464083784,0.00583123,28092.0,28091.0,0.1604]
[1680464083990,0.001,28092.0,28091.0,0.018]
[1680464084192,0.001,28092.0,28091.0,0.025]
[1680464084690,0.001,28092.0,28091.0,0.027]
[1680464085787,0.001,28092.0,28091.0,0.077]
[1680464086284,0.001,28092.0,28091.0,0.027]
[1680464086591,0.001,28092.0,28091.0,0.077]
[1680464087084,0.001,28092.0,28091.0,0.027]
[1680464087285,0.443,28092.0,28091.0,0.027]
[1680464088787,0.05,28091.0,28084.0,0.05]
[1680464088992,0.05,28087.0,28086.0,0.05]
[1680464089393,0.4424,28088.0,28086.0,0.05]
[1680464089893,0.05,28087.0,28084.0,0.054]
[1680464090095,0.4424,28088.0,28084.0,0.054]
[1680464090390,0.4454,28088.0,28086.0,0.004]
[1680464090790,0.003,28087.0,28084.0,0.054]
[1680464091289,0.05,28087.0,28086.0,0.004]
[1680464092081,0.4454,28088.0,28086.0,0.004]
[1680464092286,0.4424,28088.0,28084.0,0.05]
[1680464092593,0.00793447,28087.0,28084.0,0.054]
[1680464092789,0.00793447,28087.0,28086.0,0.004]
[1680464093194,0.05793447,28087.0,28086.0,0.004]
[1680464093392,0.00493447,28087.0,28084.0,0.054]
[1680464093796,0.00493447,28087.0,28084.0,0.05]
[1680464093997,0.00793447,28087.0,28086.0,0.004]
[1680464094996,0.00493447,28087.0,28084.0,0.05]
[1680464095195,0.00793447,28087.0,28084.0,0.054]
[1680464095495,0.00693447,28087.0,28086.0,0.004]
[1680464096195,0.00693447,28087.0,28084.0,0.054]
[1680464096394,0.00493447,28087.0,28084.0,0.05]
[1680464096693,0.00693447,28087.0,28086.0,0.004]
[1680464097091,0.00693447,28087.0,28084.0,0.054]
[1680464098198,0.00693447,28087.0,28086.0,0.004]
[1680464098496,0.00693447,28087.0,28086.0,0.05]
[1680464099091,0.00693447,28087.0,28086.0,0.054]
[1680464100797,0.14893447,28087.0,28086.0,0.054]
[1680464101901,0.00693447,28087.0,28086.0,0.054]
[1680464104603,0.00693447,28087.0,28086.0,0.004]
[1680464104999,0.00693447,28087.0,28086.0,0.054]
[1680464105503,0.00493447,28087.0,28086.0,0.05]
[1680464105705,0.00693447,28087.0,28086.0,0.054]
[1680464106601,0.00693447,28087.0,28086.0,0.3547]
[1680464106995,0.00693447,28087.0,28086.0,0.3047]
[1680464109996,0.00693447,28087.0,28086.0,0.4468]
[1680464110402,0.002,28087.0,28086.0,0.66928082]
[1680464110707,0.002,28087.0,28086.0,0.71928082]
[1680464111802,0.05,28093.0,28087.0,0.05]
[1680464111999,0.05,28093.0,28089.0,0.3007]
[1680464112199,0.00472898,28092.0,28090.0,0.05]
[1680464113502,0.02272898,28092.0,28090.0,0.051]
[1680464113903,0.00872898,28092.0,28090.0,0.051]
[1680464115008,0.00872898,28092.0,28091.0,0.1424]
[1680464115608,0.00872898,28092.0,28090.0,0.051]
[1680464115905,0.00872898,28092.0,28091.0,0.001]
[1680464116308,0.00472898,28092.0,28090.0,0.1924]
[1680464116509,0.00872898,28092.0,28090.0,0.1934]
[1680464116700,0.004,28092.0,28090.0,0.1934]
[1680464117404,0.004,28092.0,28091.0,0.001]
[1680464117807,0.004,28092.0,28091.0,0.1434]
[1680464118012,0.00873178,28092.0,28091.0,0.001]
[1680464118411,0.00873178,28092.0,28091.0,0.1434]
[1680464118710,0.00873178,28092.0,28091.0,0.1424]
[1680464119406,0.01273178,28092.0,28091.0,0.1434]
[1680464119811,0.00673178,28092.0,28091.0,0.1484]
[1680464120405,0.00673178,28092.0,28091.0,0.006]
[1680464120912,0.44923178,28092.0,28091.0,0.006]
[1680464121109,0.05,28091.0,28087.0,0.141]
[1680464121309,0.3007,28088.0,28087.0,0.05322043]
[1680464121513,0.3007,28088.0,28084.0,0.1924]
[1680464122016,0.1924,28087.0,28084.0,0.05]
[1680464122310,0.05,28086.0,28084.0,0.05]
[1680464122698,0.139,28087.0,28084.0,0.05]
[1680464122909,0.142,28087.0,28082.0,0.4397]
[1680464123413,0.003,28086.0,28083.0,0.22250252]
[1680464123613,0.003,28086.0,28084.0,0.05]
[1680464124506,0.089,28087.0,28084.0,0.05]
[1680464124908,0.002,28086.0,28084.0,0.05]
[1680464125106,0.052,28086.0,28084.0,0.05]
[1680464125301,0.002,28086.0,28084.0,0.05]
[1680464125504,0.089,28087.0,28084.0,0.05]
[1680464125505,0.09,28087.0,28084.0,0.05]
[1680464125906,0.002,28086.0,28084.0,0.05]
[1680464126106,0.002,28086.0,28083.0,0.05]
[1680464126107,0.052,28086.0,28083.0,0.05]
[1680464126809,0.3007,28085.0,28083.0,0.05]
[1680464127011,0.002,28086.0,28083.0,0.05]
[1680464127217,0.09,28087.0,28083.0,0.05]
[1680464127603,0.002,28085.0,28083.0,0.05]
[1680464128009,0.139,28087.0,28083.0,0.05]
[1680464128211,0.09,28087.0,28083.0,0.05]
[1680464128512,0.089,28087.0,28083.0,0.05]
[1680464128712,0.002,28085.0,28083.0,0.05]
[1680464129116,0.002,28085.0,28084.0,0.31149983]
[1680464129315,0.3007,28088.0,28084.0,0.31149983]
[1680464129512,0.001,28087.0,28085.0,0.05]
[1680464129714,0.051,28087.0,28085.0,0.05]
[1680464129913,0.001,28087.0,28085.0,0.05]
[1680464130616,0.089,28089.0,28085.0,0.05]
[1680464131019,0.001,28087.0,28085.0,0.05]
[1680464131919,0.089,28088.0,28085.0,0.05]
[1680464132321,0.001,28087.0,28085.0,0.05]
[1680464133021,0.01066132,28086.0,28085.0,0.05]
[1680464133924,0.002,28086.0,28085.0,0.05]
[1680464136822,0.002,28086.0,28084.0,0.089]
[1680464137226,0.002,28086.0,28085.0,0.05]
[1680464137722,0.089,28088.0,28085.0,0.3507]
[1680464137919,0.002,28086.0,28085.0,0.3507]
[1680464138122,0.002,28086.0,28085.0,0.4397]
[1680464138921,0.3007,28090.0,28085.0,0.4397]
[1680464139120,0.002,28086.0,28085.0,0.3507]
[1680464139325,0.002,28086.0,28085.0,0.4397]
[1680464142931,0.002,28086.0,28085.0,0.66218539]
[1680464144126,0.05,28091.0,28086.0,0.05]
[1680464144323,0.05,28090.0,28087.0,0.0885]
[1680464144524,0.05,28090.0,28088.0,0.05]
[1680464145129,0.05,28090.0,28088.0,0.3507]
[1680464145328,0.068,28091.0,28088.0,0.3507]
[1680464145525,0.062,28090.0,28088.0,0.3007]
[1680464147927,0.062,28090.0,28085.0,0.3507]
[1680464147928,0.09899911,28089.0,28085.0,0.3007]
[1680464148126,0.05,28088.0,28085.0,0.3007]
[1680464148925,0.3007,28086.0,28085.0,0.002]
[1680464149233,0.3897,28086.0,28085.0,0.002]
[1680464149428,0.05,28085.0,28082.0,0.05]
[1680464149928,0.3007,28083.0,28082.0,0.05]
[1680464151027,0.052,28085.0,28082.0,0.05]
[1680464151224,0.002,28085.0,28082.0,0.05]
[1680464151420,0.003,28083.0,28082.0,0.05]
[1680464151925,0.089,28083.0,28082.0,0.05]
[1680464152233,0.089,28083.0,28081.0,0.05]
[1680464152635,0.139,28082.0,28076.0,0.05]
[1680464152834,0.3007,28079.0,28076.0,0.05]
[1680464153026,0.05,28078.0,28077.0,0.22254606]
[1680464153235,0.3007,28079.0,28077.0,0.22254606]
[1680464153433,0.0885,28080.0,28078.0,0.05]
[1680464154230,0.0915,28080.0,28078.0,0.05]
[1680464155532,0.0915,28080.0,28079.0,0.05]
[1680464158033,0.0915,28080.0,28079.0,0.139]
[1680464158034,0.003,28080.0,28079.0,0.139]
[1680464163235,0.003,28080.0,28079.0,0.19158149]
[1680464163839,0.003,28080.0,28079.0,0.49228149]
[1680464166046,0.003,28080.0,28079.0,0.58128149]
[1680464166239,0.003,28080.0,28079.0,0.80379608]
[1680464168838,0.05,28086.0,28080.0,0.05]
[1680464169053,0.089,28082.0,28080.0,0.05]
[1680464169248,0.089,28082.0,28078.0,0.0888]
[1680464169445,0.05,28081.0,28078.0,0.0888]
[1680464169947,0.05,28081.0,28080.0,0.003]
[1680464170346,0.4394,28081.0,28077.0,0.05]
[1680464170549,0.089,28079.0,28077.0,0.05]
[1680464170850,0.05,28078.0,28077.0,0.05]
[1680464171242,0.089,28078.0,28077.0,0.05]
[1680464172039,0.09,28078.0,28075.0,0.05]
[1680464172942,0.089,28078.0,28075.0,0.05]
[1680464173138,0.09,28078.0,28075.0,0.05]
[1680464178051,0.3007,28076.0,28070.0,0.10468173]
[1680464178256,0.3007,28076.0,28058.0,0.3007]
[1680464178257,0.7788,28071.0,28057.0,0.3106]
[1680464178448,0.3007,28061.0,28058.0,0.2226308]
[1680464178652,0.3007,28061.0,28060.0,0.089]
[1680464179049,0.3007,28068.0,28062.0,0.0883]
[1680464179249,0.3007,28068.0,28064.0,0.0885]
[1680464179848,0.3007,28068.0,28065.0,0.05]
[1680464180251,0.3007,28067.0,28065.0,0.05]
[1680464181156,0.3037,28067.0,28065.0,0.05]
[1680464181952,0.05,28066.0,28063.0,0.05]
[1680464182154,0.3897,28064.0,28063.0,0.05]
[1680464183447,0.3927,28064.0,28060.0,0.05]
[1680464183663,0.3927,28064.0,28061.0,0.22264719]
[1680464183857,0.3927,28064.0,28062.0,0.05]
[1680464184262,0.3927,28064.0,28060.0,0.05]
[1680464184263,0.3007,28063.0,28060.0,0.05]
[1680464184555,0.3507,28063.0,28059.0,0.139]
[1680464184760,0.3007,28060.0,28059.0,0.05]
[1680464184953,0.3007,28060.0,28059.0,0.139]
[1680464185152,0.3007,28060.0,28059.0,0.05]
[1680464185552,0.089,28062.0,28059.0,0.05]
[1680464186555,0.092,28062.0,28059.0,0.05]
[1680464187456,0.092,28062.0,28055.0,0.6043]
[1680464187457,0.3894,28060.0,28054.0,0.07096047]
[1680464187654,0.3007,28055.0,28054.0,0.07096047]
[1680464187956,0.089,28059.0,28054.0,0.15996047]
[1680464188155,0.089,28059.0,28055.0,0.05]
[1680464189564,0.3007,28057.0,28055.0,0.05]
[1680464189952,0.3007,28057.0,28056.0,0.0885]
[1680464190562,0.3037,28057.0,28056.0,0.0882]
[1680464191564,0.3897,28057.0,28055.0,0.05]
[1680464191759,0.3927,28057.0,28055.0,0.05]
[1680464191966,0.089,28056.0,28054.0,0.12096047]
[1680464192258,0.089,28055.0,28054.0,0.12096047]
[1680464192861,0.089,28056.0,28054.0,0.12096047]
[1680464193062,0.05160369,28055.0,28054.0,0.12096047]